Cogmind - Beta 17.1 @@@ ROGUE MODE // 2026.09.14 @ 18:34:03 Player: stixxx Result: Destroyed by S-10 Pest with Light Assault Rifle Performance ------------- Evolutions (2) 1000 Regions Visited (4) 800 Robots Destroyed (9) 45 Value Destroyed (156) 156 Prototype IDs (2) 40 Alien Tech Used (0) 0 Bonus (0) 0 TOTAL SCORE: 2041 Bonus ------- None Cogmind --------- Core Integrity 0/550 Matter 300/300 Energy 99/100 System Corruption 0% Temperature Cool (0) Movement Core (50) Location -8/Materials Parts ------- > --- POWER (1) -------- (None) > --- PROPULSION (4) --- (None) > --- UTILITY (4) ------ Signal Interpreter > --- WEAPON (2) ------- (None) > --- INVENTORY (5) ---- Decoy Drone Bay (15/16) Advanced Beam Rifle Peak State ------------ > --- POWER ------------ Light Ion Engine > --- PROPULSION ------- Flight Unit Flight Unit > --- UTILITY ---------- Signal Interpreter Decoy Drone Bay > --- WEAPON ----------- Particle Cannon > --- INVENTORY -------- Hover Unit [Rating: 20] Favorites ----------- Power Light Ion Engine Engine Light Ion Engine Propulsion Wheel Wheel Wheel Hover Unit Hover Unit Flight Unit Flight Unit Utility Visual Processing Unit Device Decoy Drone Bay Storage Small Storage Unit Processor Visual Processing Unit Protection Core Shielding Weapon Assault Rifle Energy Cannon Particle Cannon Ballistic Gun Assault Rifle Build | -11 -10 -9 -9 -8 ------- Run | Yrd Mat Mat Min Mat Slots Evolved 4 | . . 2 . 2 Power . | . . . . . Propulsion 2 | . . 1 . 1 Utility 2 | . . 1 . 1 Weapon . | . . . . . Parts Attached 22 | 5 2 5 8 2 Power 3 | 1 . . 2 . Engine 3 | 1 . . 2 . Core . | . . . . . Reactor . | . . . . . Propulsion 10 | 2 . 3 3 2 Treads . | . . . . . Leg . | . . . . . Wheel 4 | 2 . 1 1 . Hover 2 | . . . . 2 Flight 4 | . . 2 2 . Utility 6 | 1 1 2 2 . Device 1 | . . . 1 . Storage 1 | 1 . . . . Processor 3 | . 1 2 . . Hackware . | . . . . . Protection 1 | . . . 1 . Artifact . | . . . . . Weapon 3 | 1 1 . 1 . Energy Gun . | . . . . . Energy Cannon 1 | . . . 1 . Ballistic Gun 2 | 1 1 . . . Ballistic Cannon . | . . . . . Launcher . | . . . . . Special Weapon . | . . . . . Impact Weapon . | . . . . . Slashing Weapon . | . . . . . Piercing Weapon . | . . . . . Special Melee Weapon . | . . . . . Unidentified Prototypes 2 | . . 1 1 . Parts Lost 15 | . . 3 5 7 Power 3 | . . 1 1 1 Propulsion 8 | . . 1 3 4 Utility 1 | . . . . 1 Weapon 3 | . . 1 1 1 Highest Loss Streak 7 | . . 2 7 7 To Critical Strikes . | . . . . . Average Backups 3 | 1 5 5 2 1 Power . | . 1 1 . . Propulsion 1 | . 1 2 1 . Utility . | . . . . 1 Weapon 1 | . 2 1 . . Tool/Special . | . . . . . Unused Backups 4 | . 1 2 . 1 Power 1 | . 1 . . . Propulsion . | . . . . . Utility . | . . . . . Weapon 3 | . . 2 . 1 Tool/Special . | . . . . . Average Slot Usage (%) 67 | . 94 80 55 25 Engine 9 | . 14 11 6 2 Wheel 14 | . 28 19 . . Flight 4 | . . 5 11 5 Storage 6 | . 14 7 . . Processor 15 | . 11 18 27 9 Protection 1 | . . . 1 3 Energy Cannon 1 | . . . 5 3 Ballistic Gun 13 | . 25 18 1 . Peak Build Rating 20 | 5 8 13 20 11 Average Rating 7 | 4 7 9 8 4 On Entrance 6 | . 5 8 10 8 Avg Prop Armor Cover (%) . | . . . . . Naked Turns . | . . . . . Heaviest Build 12 | 10 12 12 8 8 Greatest Support 30 | 20 20 30 10 14 Greatest Overweight (x) 1 | . . . 1 . Average Overweight (x) . | . . . . . Largest Inventory Capacity 8 | 8 8 8 5 5 Average Capacity 6 | 6 8 7 5 5 Most Carried 7 | 3 7 7 4 4 Average Carried 4 | 1 5 5 2 2 Final Capacity 8 | 8 8 5 5 5 Final Carried 7 | 3 7 4 3 3 Class Distribution -------------------- 100% | Mutant Dominant Class ---------------- Mutant | -10/Materials Mutant | -9/Materials Mutant | -9/Mines Mutant | -8/Materials Resources | -11 -10 -9 -9 -8 ----------- Run | Yrd Mat Mat Min Mat Matter Collected 468 | 234 135 5 94 . Remotely . | . . . . . Salvage Created 275 | . 160 . 82 33 Parts 18 | . 9 . 6 3 Haulers Intercepted . | . . . . . Recyclers Shooed 1 | . . . 1 . Parts Field Recycled . | . . . . . Retrieved Matter . | . . . . . Parts Self-Destructed . | . . . . . Prevented . | . . . . . Parts Restored . | . . . . . Kills | -11 -10 -9 -9 -8 ------- Run | Yrd Mat Mat Min Mat Combat Hostiles Destroyed 6 | . 2 . 2 2 Guns 3 | . 2 . 1 . Cannons 3 | . . . 1 2 Classes Destroyed 5 | . 3 . 2 . Recycler 1 | . . . 1 . Mechanic 1 | . 1 . . . Watcher 1 | . 1 . . . Swarmer 4 | . . . 2 2 Grunt 2 | . 2 . . . Best Kill Streak 3 | . 3 . 2 2 Combat Bots Only 2 | . 2 . 1 2 Max Kills in Single Turn 1 | . 1 . 1 1 Gunslinging . | . . . . . Exploded . | . . . . . Melee . | . . . . . Uniques/NPCs Destroyed . | . . . . . Combat | -11 -10 -9 -9 -8 -------- Run | Yrd Mat Mat Min Mat Hostile Shots Fired 251 | . 26 29 63 133 Missed 103 | . 11 13 19 60 Hits 148 | . 15 16 44 73 Projectile 148 | . 15 16 44 73 Critical Strikes 5 | . . 2 . 3 Damage Taken 1628 | . 186 226 378 838 Core 825 | . 41 100 132 552 Absorbed by Shields . | . . . . . Redirected to Shielding 38 | . . . 1 37 Core Remaining (%) 75 | 100 83 . 42 . Volleys Fired 47 | . 17 . 14 16 Largest 2 | . 2 . 1 1 Hottest 68 | . 40 . 68 68 Shots Fired 63 | . 33 . 14 16 Gun 40 | . 33 . 7 . Cannon 23 | . . . 7 16 Launcher . | . . . . . Special . | . . . . . Kinetic 40 | . 33 . 7 . Thermal 23 | . . . 7 16 Explosive . | . . . . . Electromagnetic . | . . . . . Robot Hit Streak 7 | . 7 . 3 3 Robot Miss Streak 5 | . 3 . 5 3 Penetration Max . | . . . . . Secondary Targets . | . . . . . Shots Hit Robots 33 | . 21 . 5 7 Core Hits 16 | . 10 . 3 3 Critical Kills . | . . . . . Critical Parts Destroyed . | . . . . . Critical Strikes . | . . . . . Melee Attacks . | . . . . . Impact . | . . . . . Slashing . | . . . . . Piercing . | . . . . . Sneak Attacks . | . . . . . Combat Hostiles . | . . . . . Follow-up Attacks . | . . . . . Damage Inflicted 564 | . 292 . 101 171 Guns 304 | . 292 . 12 . Cannons 247 | . . . 83 164 Explosions . | . . . . . Melee . | . . . . . Ramming 13 | . . . 6 7 Kinetic 304 | . 292 . 12 . Thermal 247 | . . . 83 164 Explosive . | . . . . . Electromagnetic . | . . . . . Impact . | . . . . . Slashing . | . . . . . Piercing . | . . . . . Highest Corruption . | . . . . . Average Corruption . | . . . . . Corruption Purged . | . . . . . Corruption Blocked . | . . . . . Overload Shots . | . . . . . Overflow Damage 2 | . . . . 2 Projectiles 2 | . . . . 2 Explosions . | . . . . . Melee . | . . . . . Knockbacks 1 | . . . . 1 Impact 1 | . . . . 1 Kinetic . | . . . . . Secondary . | . . . . . Self-Inflicted Damage 5 | . . . 2 3 Shots . | . . . . . Rammed 5 | . . . 3 2 Targets Rammed 5 | . . . 3 2 Kicked . | . . . . . Crushed . | . . . . . Highest Temperature 240 | . 2 10 60 240 Average Temperature 98 | . 1 7 25 138 Received Heat Transfer 438 | . 108 114 . 216 Siege Activations . | . . . . . Martial Activations . | . . . . . Shielding Activations . | . . . . . Robots Disrupted . | . . . . . Combat Hostiles . | . . . . . Robots Corrupted . | . . . . . Combat Hostiles . | . . . . . Parts Fried . | . . . . . Impact Corruptions . | . . . . . Robots Melted . | . . . . . Combat Hostiles . | . . . . . Parts Melted . | . . . . . Heat Transferred 444 | . . . 148 296 Parts Sabotaged . | . . . . . Parts Stolen . | . . . . . Parts Stripped . | . . . . . Power Chain Reactions . | . . . . . Alert | -11 -10 -9 -9 -8 ------- Run | Yrd Mat Mat Min Mat Maximum Alert Level . | . . . . . Low Security (%) 100 | 100 100 100 100 100 Level 1 . | . . . . . Level 2 . | . . . . . Level 3 . | . . . . . Level 4 . | . . . . . Level 5 . | . . . . . High Security . | . . . . . Max Security . | . . . . . Peak Influence 105 | . 50 20 45 105 Initial 20 | . . 20 . 13 Average 15 | . 8 5 18 38 Influence Increases 402 | . 81 12 100 209 Destroy 0b10 Robot/C 120 | . 40 . 40 40 Destroy 0b10 Robot/NC 15 | . 10 . 5 . Destroy Leader 22 | . 12 . 10 . Successful Hack 20 | . 4 12 . 4 Partial Spotted 45 | . 15 . . 30 Lose Combat Pursuer 180 | . . . 45 135 Influence Decreases 297 | . 31 62 65 139 Entered New Map 52 | . . 30 . 22 Time Decay 166 | . 31 30 35 70 Lost Part 79 | . . 2 30 47 Squads Dispatched . | . . . . . Investigation . | . . . . . Extermination . | . . . . . Reinforcement . | . . . . . Assault . | . . . . . Garrison . | . . . . . Intercept . | . . . . . Searches Triggered . | . . . . . Construction Impeded . | . . . . . Haulers Reinforced . | . . . . . Active Scanning Responses . | . . . . . Cargo Convoy Interrupts . | . . . . . Stealth | -11 -10 -9 -9 -8 --------- Run | Yrd Mat Mat Min Mat Distress Signals 2 | . 1 . . 1 Communications Jammed . | . . . . . Distress Signals . | . . . . . Times Spotted 42 | . 5 7 8 22 Peak Tracking Total 9 | . 4 5 4 9 Tactical Retreats 6 | . . . 3 3 Traps | -11 -10 -9 -9 -8 ------- Run | Yrd Mat Mat Min Mat Traps Triggered . | . . . . . Indirectly . | . . . . . Trap Hack Attempts . | . . . . . Triggered . | . . . . . Disarmed . | . . . . . Reprogrammed . | . . . . . Reused . | . . . . . Traps Extracted . | . . . . . Installed . | . . . . . Triggered . | . . . . . Machines | -11 -10 -9 -9 -8 ---------- Run | Yrd Mat Mat Min Mat Machines Disabled . | . . . . . Max in Single Turn . | . . . . . Machines Repaired . | . . . . . Machines Dismantled . | . . . . . Machines Sabotaged . | . . . . . Overloaded Fab Kills . | . . . . . Hacking | -11 -10 -9 -9 -8 --------- Run | Yrd Mat Mat Min Mat Machines Accessed 6 | . 1 3 1 1 Terminals 5 | . 1 3 . 1 Fabricators . | . . . . . Repair Stations . | . . . . . Recycling Units . | . . . . . Scanalyzers . | . . . . . Garrison Access . | . . . . . Total Hacks 12 | . 3 6 1 2 Successful 8 | . 1 5 1 1 Failed 4 | . 2 1 . 1 Catastrophic . | . . . . . Database Lockouts . | . . . . . Manual . | . . . . . Terminals 11 | . 3 6 . 2 Fabricators . | . . . . . Repair Stations . | . . . . . Recycling Units . | . . . . . Scanalyzers . | . . . . . Garrison Access . | . . . . . Terminal Hacks 8 | . 1 5 1 1 Record 3 | . . 2 . 1 Robot Analysis 1 | . . 1 . . Open Door 1 | . . . 1 . Emergency Access Points 2 | . 1 1 . . Locate Traps 1 | . . 1 . . Fabricator Hacks . | . . . . . Repair Station Hacks . | . . . . . Recycling Unit Hacks . | . . . . . Scanalyzer . | . . . . . Garrison Access Hacks . | . . . . . Unauthorized Hacks . | . . . . . Terminals . | . . . . . Fabricators . | . . . . . Repair Stations . | . . . . . Recycling Units . | . . . . . Scanalyzers . | . . . . . Garrison Access . | . . . . . Data Cores Recovered . | . . . . . Used . | . . . . . Hacking Detections 4 | . 1 2 . 1 Full Trace Events . | . . . . . Feedback Events . | . . . . . Feedback Blocked . | . . . . . Robot Schematics Acquired . | . . . . . Robots Built . | . . . . . Authchips . | . . . . . Time . | . . . . . Total Robot Build Rating . | . . . . . Part Schematics Acquired . | . . . . . Parts Built . | . . . . . Authchips . | . . . . . Time . | . . . . . Total Part Build Rating . | . . . . . Part Studies Acquired . | . . . . . Parts Repaired . | . . . . . Time . | . . . . . Parts Recycled . | . . . . . Recycled Matter . | . . . . . Retrieved Matter . | . . . . . Retrieved Components . | . . . . . Parts Scanalyzed . | . . . . . Part Schematics Acquired . | . . . . . Parts Damaged . | . . . . . Bothacking | -11 -10 -9 -9 -8 ------------ Run | Yrd Mat Mat Min Mat Used RIF Installer . | . . . . . Robots Hacked . | . . . . . Non-combat . | . . . . . Combat . | . . . . . Robot Hacks Applied . | . . . . . Relay Couplers Released . | . . . . . Fabnet Peak Effective % . | . . . . . Robots Rewired . | . . . . . Allies Hacked . | . . . . . Hacks Repelled . | . . . . . Allies | -11 -10 -9 -9 -8 -------- Run | Yrd Mat Mat Min Mat Total Allies . | . . . . . Largest Group . | . . . . . Highest-Rated Group . | . . . . . Highest-Rated Ally . | . . . . . Total Orders . | . . . . . Ally Attacks . | . . . . . Total Damage . | . . . . . Kills . | . . . . . Allies Corrupted . | . . . . . Allies Melted . | . . . . . Intel | -11 -10 -9 -9 -8 ------- Run | Yrd Mat Mat Min Mat Active Infowar (turns) 436 | . 186 155 95 . Optics 436 | . 186 155 95 . Robot Analysis Total 1 | . . 1 . . Derelict Logs Recovered 1 | . . . 1 . Drone Launches 1 | . . . 1 . Drone Recoveries . | . . . . . Exploration | -11 -10 -9 -9 -8 ------------- Run | Yrd Mat Mat Min Mat Turns Passed 698 | 49 218 155 122 154 Spaces Moved 864 | 49 173 241 163 238 Core 243 | 3 . . 36 204 Treads . | . . . . . Legs . | . . . . . Wheels 347 | 46 173 119 9 . Hover 6 | . . . . 6 Flight 268 | . . 122 118 28 Fastest Speed 34 | 50 80 34 34 37 Average Speed 58 | 78 80 57 46 48 Slowest Speed 115 | 80 80 80 115 60 Overloaded Moves . | . . . . . Propulsion Burnouts . | . . . . . Robots Hopped 3 | . . 1 2 . Potential Cave-ins . | . . . . . Cave-ins Triggered . | . . . . . Exploration Rate (%) 24 | 3 31 25 41 20 Regions Visited 4 Branch Regions 1 Pre-discovered Areas . | . . . . . Known Exits Taken 2 | . . 1 1 . Unknown Exits Taken 2 | 1 1 . . . Scrap Searched 1 | . . . 1 . Spaces Dug . | . . . . . Terrain Destroyed . | . . . . . Melee . | . . . . . Projectile . | . . . . . AOE . | . . . . . Terrain Rammed . | . . . . . Walls Destroyed . | . . . . . Machines Disabled . | . . . . . Actions | -11 -10 -9 -9 -8 --------- Run | Yrd Mat Mat Min Mat Total 983 | 56 219 257 191 260 Wait 22 | . 21 1 . . Move 854 | 48 172 238 158 238 Hop 3 | . . 1 2 . Pick Up 14 | 3 6 1 2 2 Fast Attach 13 | 5 1 3 4 . Attach 10 | . 1 2 5 2 Detach 4 | . . 1 3 . Swap . | . . . . . Drop 7 | . 1 6 . . Fire 47 | . 17 . 14 16 Melee . | . . . . . Ram 5 | . . . 3 2 Kick . | . . . . . Crush . | . . . . . Escape Stasis . | . . . . . Rewire 4 | . . 4 . . Trap . | . . . . . Miscellaneous . | . . . . . Route ------- -11/Scrapyard -10/Materials -9/Materials (discovered 2 exits: *Min / [*Sto]) -9/Mines -8/Materials History --------- Turn | Location | Event 4 | -11/Scrapyard | Discovered new exit (range 16) 50 | -11/Scrapyard | Entered Materials 196 | -10/Materials | Discovered new exit (range 12) 268 | -10/Materials | Entered another Materials area 268 | -9/Materials | Evolved 2 slots: Propulsion x1, Utility x1 308 | -9/Materials | Build established: Mutant 360 | -9/Materials | Discovered new exit (range 10) 421 | -9/Materials | Discovered new exit (range 9) 423 | -9/Materials | Identified exit to Mines 423 | -9/Materials | Entered Mines 426 | -9/Mines | Met a Derelict bent on vengeance 446 | -9/Mines | Found the Drone Emporium 450 | -9/Mines | Found Prototype Device 479 | -9/Mines | Core integrity fell below 50% 479 | -9/Mines | Discovered new exit (range 9) 496 | -9/Mines | Lost 7 parts (2p3n2w) 519 | -9/Mines | Identified Decoy Drone Bay 538 | -9/Mines | Identified exit to Materials 545 | -9/Mines | Entered Materials 545 | -8/Materials | Evolved 2 slots: Propulsion x1, Utility x1 637 | -8/Materials | Lost 7 parts (1p4n1u1w) 644 | -8/Materials | Core integrity fell below 50% 668 | -8/Materials | Core integrity fell below 20% 699 | -8/Materials | Destroyed by S-10 Pest with Light Assault Rifle Last Messages --------------- Destroyed Flight Unit. S-10 Pest destroyed. Flight Unit destroyed. Destroyed Flight Unit. Lgt. Ion Engine destroyed. Particle Cannon destroyed. Airjet destroyed. Hover Unit destroyed. Atomic Centrifuge disabled. Core Shielding destroyed. Acquired Prototype Energy Gun. Slammed into K-01 Serf. K-01 Serf knocked back. Slammed into S-10 Pest. S-10 Pest destroyed. K-01 Serf collects debris. Y-45 Defender destroyed. K-01 Serf collects debris. R-06 Scavenger collects Lgt. Assault Rifle. Critical hit (Burn: +37). Map ----- +----------------------------------------------------+ | ?????????????????????????#########?????????# """ | | ?????????????????????????# #?????????# """ | | ?????????????????????????# #?????????# | | ?????????????????????????# #######???#####+# | | ?????????????????????????# """ # ####### | | ?????????????????????????# """ # | | ?????????????????????????# "" + | | ?????????????????????????# # | | ?????????????????????????# !* # ####### | | ?????????????????????????# * ## ##?????## | | ?????????????????????????# ## #???????# | | ????????????????????????# ## #???????# | | ????????????????????????########### #???????/ | | ??????????????????????????????????# #???????# | | ??????????????????????????????????# #???????# | | ??????????????????????????????????# #???????# | | ??????????????????????????????????# #???????# | | ??????????????????????????????????# #???????# | | ??????????????????????????????????# #???????# | | ??????????????????????????????????# #???????#### | | ??????????????????????????????????# #??????????? | | ????????????????????????######????# #??????????? | | ????????????? ##+####### ######t s############ | | ????????????? r a % g | | ????????????? | | ????????????????????#####@=% ########### | | ????????????????????????##+###??# T + ####### | | ???????????????????????? ???# # #?????? | | ???????????????????????# """ ?#""" # #?????? | | ???????????????????????# """ #""" ! # #?????? | | ???????????????????????# """ #""" #####?????? | | ???????????????????????# # #?????????? | | ???????????????????????# "" #""" #?????????? | | ???????????????????????# T" #""" #?????????? | | ???????????????????????# ???#""" #?????????? | | ???????????????????????# ????# #?????????? | | ???????????????????????##???????########?????????? | | ?????????????????????????????????????????????????? | | | | | | | | | | | | | | | | | | | | | | | | | +----------------------------------------------------+ Best States ------------- Heat Dissipation 31 Energy Generation 10 Energy Capacity 125 Matter Stores 300 Matter Capacity 300 Sight Range 18 Terrain Scan Density 85 Core Shielding 20 Evasion (%) 63 Item Schematics ----------------- None Robot Schematics ------------------ None Fabricated ------------ Nothing Repaired ---------- Nothing Studied --------- None Alien Tech Used ----------------- None Achievements -------------- None Challenges ------------ None Game ------ Seed StormFlakShotgun Manual? 0 Play Time 00:22:33 Cumulative 6.5 hours Start 2026.09.14 @ 18:11:30 End 2026.09.14 @ 18:34:03 Sessions 1 Manual Loads 0 Difficulty Rogue Special Mode None Game No. 15 Rogue 15 Adventurer 0 Explorer 0 Win Type - Total 0 Types 0/0/0/0/0/0/0/0/0/0 Lore% 4 Gallery% 7 Achievement% 9 Wizard Run 0 Options --------- Layout 1 ASCII 0 Keyboard 1 Movement Numpad Keybinds 0 Fullscreen 1 Font 24/Smallcaps Map View 50x35 Zoom Use 0% Tactical HUD 0 Map Filters NONE Filters NONE Steam 1 RUN: a8ac9e78-8119-48ad-9849-3c57f2273c2f